[Event "*** Titled Tuesday Blitz"]
[Site "Chess.com"]
[Date "2018.09.04"]
[Round "4"]
[White "LawrenceTrent"]
[Black "MITerryble"]
[Result "1-0"]
[WhiteElo "2558"]
[BlackElo "2746"]
[TimeControl "180+2"]
[EndTime "14:28:52 PDT"]
[Termination "LawrenceTrent won by checkmate"]

1. e4 {[%clk 0:03:01.9]} 1... e6 {[%clk 0:03:01.1]} 2. d4 {[%clk 0:03:02.4]}
2... d5 {[%clk 0:03:02.5]} 3. Nd2 {[%clk 0:03:03.8]} 3... Be7 {[%clk 0:03:03.3]}
4. Ngf3 {[%clk 0:03:02.5]} 4... Nf6 {[%clk 0:03:04.4]} 5. e5 {[%clk 0:03:03.7]}
5... Nfd7 {[%clk 0:03:05.6]} 6. c3 {[%clk 0:03:04.4]} 6... c5 {[%clk 0:03:07.5]}
7. Bd3 {[%clk 0:03:04.9]} 7... Nc6 {[%clk 0:03:08.8]} 8. O-O {[%clk 0:03:04]}
8... g5 {[%clk 0:03:10.2]} 9. Qe2 {[%clk 0:03:04.2]} 9... g4 {[%clk 0:03:07.4]}
10. Ne1 {[%clk 0:03:05]} 10... h5 {[%clk 0:03:08.9]} 11. Nc2 {[%clk 0:03:01.6]}
11... c4 {[%clk 0:03:09.6]} 12. Nxc4 {[%clk 0:02:40.5]} 12... dxc4 {[%clk
0:03:11.5]} 13. Bxc4 {[%clk 0:02:41.7]} 13... Nb6 {[%clk 0:02:58.5]} 14. Bd3
{[%clk 0:02:41.1]} 14... Rg8 {[%clk 0:02:55.8]} 15. Qe4 {[%clk 0:02:12.7]} 15...
Rg7 {[%clk 0:02:47.4]} 16. Bh6 {[%clk 0:01:59.5]} 16... Rg6 {[%clk 0:02:48.3]}
17. Bd2 {[%clk 0:02:00.1]} 17... Qc7 {[%clk 0:02:27.1]} 18. Qe2 {[%clk
0:01:54.9]} 18... Rg8 {[%clk 0:02:27.6]} 19. b4 {[%clk 0:01:49.2]} 19... Bd7
{[%clk 0:02:26.7]} 20. a4 {[%clk 0:01:49.7]} 20... O-O-O {[%clk 0:02:21.6]} 21.
a5 {[%clk 0:01:50.3]} 21... Nd5 {[%clk 0:02:22.7]} 22. b5 {[%clk 0:01:43.8]}
22... Nxa5 {[%clk 0:02:07.7]} 23. c4 {[%clk 0:01:44.5]} 23... Nxc4 {[%clk
0:01:46.5]} 24. Bxc4 {[%clk 0:01:44.6]} 24... Kb8 {[%clk 0:01:47.7]} 25. Rfb1
{[%clk 0:01:41.3]} 25... Rc8 {[%clk 0:01:44.5]} 26. Bxd5 {[%clk 0:01:34.1]}
26... exd5 {[%clk 0:01:38.7]} 27. Ne3 {[%clk 0:01:23.1]} 27... Be6 {[%clk
0:01:39.1]} 28. b6 {[%clk 0:01:09]} 28... axb6 {[%clk 0:01:41]} 29. Be1 {[%clk
0:01:04.9]} 29... Qd7 {[%clk 0:01:14.9]} 30. Rxb6 {[%clk 0:01:03]} 30... Rc6
{[%clk 0:01:15.3]} 31. Rbb1 {[%clk 0:00:53]} 31... Kc7 {[%clk 0:01:08.4]} 32.
Ba5+ {[%clk 0:00:52]} 32... Kb8 {[%clk 0:01:01.2]} 33. Qa2 {[%clk 0:00:51.4]}
33... Ra6 {[%clk 0:01:01]} 34. Bc7+ {[%clk 0:00:45.3]} 34... Kc8 {[%clk
0:00:58.4]} 35. Ba5 {[%clk 0:00:34.9]} 35... Bd8 {[%clk 0:00:51.7]} 36. Qc2+
{[%clk 0:00:33.8]} 36... Rc6 {[%clk 0:00:52.5]} 37. Qh7 {[%clk 0:00:34.6]} 37...
Re8 {[%clk 0:00:07.6]} 38. Bxd8 {[%clk 0:00:33.5]} 38... Rxd8 {[%clk 0:00:08.8]}
39. Qxh5 {[%clk 0:00:34.3]} 39... Kb8 {[%clk 0:00:08.7]} 40. Qh7 {[%clk
0:00:24.1]} 40... Qc7 {[%clk 0:00:08.9]} 41. Qg7 {[%clk 0:00:22.3]} 41... Rc8
{[%clk 0:00:07]} 42. Rf1 {[%clk 0:00:18.3]} 42... Qb6 {[%clk 0:00:07]} 43. Rad1
{[%clk 0:00:18.2]} 43... Qb2 {[%clk 0:00:04.2]} 44. Nxg4 {[%clk 0:00:17.8]}
44... Rb6 {[%clk 0:00:04.4]} 45. h3 {[%clk 0:00:18.6]} 45... Rb4 {[%clk
0:00:05.7]} 46. Qg5 {[%clk 0:00:14.5]} 46... Rxd4 {[%clk 0:00:06.7]} 47. Rxd4
{[%clk 0:00:14.9]} 47... Qxd4 {[%clk 0:00:08.6]} 48. Kh2 {[%clk 0:00:11.7]}
48... Qe4 {[%clk 0:00:09.2]} 49. f4 {[%clk 0:00:12.4]} 49... Qd3 {[%clk
0:00:08.4]} 50. Rf2 {[%clk 0:00:13]} 50... Bf5 {[%clk 0:00:08.2]} 51. Nh6 {[%clk
0:00:13.4]} 51... Be4 {[%clk 0:00:06.5]} 52. Nxf7 {[%clk 0:00:14.1]} 52... Qe3
{[%clk 0:00:07.8]} 53. Qg3 {[%clk 0:00:14.6]} 53... Qd4 {[%clk 0:00:08.8]} 54.
f5 {[%clk 0:00:15.6]} 54... Rc3 {[%clk 0:00:09.2]} 55. e6+ {[%clk 0:00:16.6]}
55... Ka7 {[%clk 0:00:10.1]} 56. Ra2+ {[%clk 0:00:15.9]} 56... Kb6 {[%clk
0:00:10.8]} 57. Qd6+ {[%clk 0:00:16.5]} 57... Rc6 {[%clk 0:00:12.2]} 58. Qd8+
{[%clk 0:00:17.4]} 58... Kb5 {[%clk 0:00:13.4]} 59. Nd6+ {[%clk 0:00:17.5]}
59... Kb4 {[%clk 0:00:12]} 60. Qa5+ {[%clk 0:00:17.9]} 60... Kb3 {[%clk
0:00:11.7]} 61. Qa3# {[%clk 0:00:19.2]} 1-0

[Event "*** Titled Tuesday Blitz"]
[Site "Chess.com"]
[Date "2018.09.04"]
[Round "4"]
[White "patrisiii123"]
[Black "Gareth-Bale11"]
[Result "1/2-1/2"]
[WhiteElo "2329"]
[BlackElo "2613"]
[TimeControl "180+2"]
[EndTime "14:29:10 PDT"]
[Termination "Game drawn - insufficient material"]

1. e4 {[%clk 0:03:01.9]} 1... c6 {[%clk 0:02:54.4]} 2. d4 {[%clk 0:03:02.5]}
2... d5 {[%clk 0:02:54]} 3. exd5 {[%clk 0:03:04.4]} 3... cxd5 {[%clk 0:02:53.6]}
4. Bd3 {[%clk 0:03:06]} 4... Nf6 {[%clk 0:02:55.4]} 5. h3 {[%clk 0:03:06.6]}
5... Nc6 {[%clk 0:02:55.3]} 6. c3 {[%clk 0:03:08]} 6... e5 {[%clk 0:02:54.2]} 7.
dxe5 {[%clk 0:03:08.5]} 7... Nxe5 {[%clk 0:02:56.1]} 8. Qe2 {[%clk 0:03:10]}
8... Qe7 {[%clk 0:02:55.2]} 9. Bc2 {[%clk 0:03:10.9]} 9... Bd7 {[%clk
0:02:54.3]} 10. Nd2 {[%clk 0:03:12]} 10... O-O-O {[%clk 0:02:53.8]} 11. Ngf3
{[%clk 0:03:08.8]} 11... Nc6 {[%clk 0:02:54.5]} 12. Qxe7 {[%clk 0:03:07.8]}
12... Bxe7 {[%clk 0:02:56.4]} 13. O-O {[%clk 0:03:08.5]} 13... Rhe8 {[%clk
0:02:57.4]} 14. Nb3 {[%clk 0:03:09.2]} 14... Ne4 {[%clk 0:02:56.7]} 15. Be3
{[%clk 0:03:07.9]} 15... Bf6 {[%clk 0:02:56.1]} 16. Rad1 {[%clk 0:03:07]} 16...
Be6 {[%clk 0:02:56.6]} 17. Nfd4 {[%clk 0:03:04.8]} 17... Kb8 {[%clk 0:02:45.7]}
18. Bf4+ {[%clk 0:02:30.4]} 18... Kc8 {[%clk 0:02:39.4]} 19. Bxe4 {[%clk
0:01:58.9]} 19... dxe4 {[%clk 0:02:38.3]} 20. Nb5 {[%clk 0:01:59.7]} 20... Be7
{[%clk 0:02:24.7]} 21. N3d4 {[%clk 0:01:17.6]} 21... Bc4 {[%clk 0:01:57.1]} 22.
Rfe1 {[%clk 0:00:44]} 22... Bd3 {[%clk 0:01:55.2]} 23. Nxc6 {[%clk 0:00:28.5]}
23... bxc6 {[%clk 0:01:53.8]} 24. Nd4 {[%clk 0:00:21.7]} 24... Kb7 {[%clk
0:01:51.5]} 25. f3 {[%clk 0:00:18.3]} 25... f5 {[%clk 0:01:28.7]} 26. Nxf5
{[%clk 0:00:19.3]} 26... Bc5+ {[%clk 0:01:27.9]} 27. Nd4 {[%clk 0:00:20.5]}
27... Bb6 {[%clk 0:01:11.1]} 28. fxe4 {[%clk 0:00:17.2]} 28... Rxe4 {[%clk
0:01:12]} 29. Rxe4 {[%clk 0:00:15.3]} 29... Bxe4 {[%clk 0:01:13.9]} 30. Kh2
{[%clk 0:00:16.8]} 30... c5 {[%clk 0:01:14.8]} 31. Re1 {[%clk 0:00:16.2]} 31...
cxd4 {[%clk 0:01:10.9]} 32. Rxe4 {[%clk 0:00:17.3]} 32... d3 {[%clk 0:01:10.4]}
33. Re1 {[%clk 0:00:18.4]} 33... Kc6 {[%clk 0:01:08]} 34. Rd1 {[%clk 0:00:19.1]}
34... a5 {[%clk 0:01:06.3]} 35. Kg3 {[%clk 0:00:19.4]} 35... a4 {[%clk
0:01:04.9]} 36. Be5 {[%clk 0:00:18.2]} 36... Kb5 {[%clk 0:01:02.9]} 37. Kf3
{[%clk 0:00:16.5]} 37... Kc4 {[%clk 0:01:02.5]} 38. Bxg7 {[%clk 0:00:05.3]}
38... Re8 {[%clk 0:01:00.3]} 39. b3+ {[%clk 0:00:05.9]} 39... axb3 {[%clk
0:01:00.7]} 40. axb3+ {[%clk 0:00:07.8]} 40... Kxb3 {[%clk 0:01:02.1]} 41. Rb1+
{[%clk 0:00:09.1]} 41... Kc2 {[%clk 0:01:02]} 42. Rxb6 {[%clk 0:00:10.2]} 42...
d2 {[%clk 0:01:03.3]} 43. Rd6 {[%clk 0:00:10.2]} 43... d1=Q+ {[%clk 0:01:02.6]}
44. Rxd1 {[%clk 0:00:12.1]} 44... Kxd1 {[%clk 0:01:04.4]} 45. Bd4 {[%clk
0:00:13.7]} 45... Kd2 {[%clk 0:01:04.8]} 46. Kg4 {[%clk 0:00:14.8]} 46... Re6
{[%clk 0:01:04]} 47. Kh5 {[%clk 0:00:15.9]} 47... Ke2 {[%clk 0:01:04.8]} 48. g4
{[%clk 0:00:17.2]} 48... Kf3 {[%clk 0:01:05.7]} 49. h4 {[%clk 0:00:17.9]} 49...
Ke4 {[%clk 0:01:05.8]} 50. g5 {[%clk 0:00:18.7]} 50... Kf5 {[%clk 0:01:06.4]}
51. Bf6 {[%clk 0:00:18.5]} 51... Re4 {[%clk 0:01:03.4]} 52. Bd4 {[%clk
0:00:16.9]} 52... Rg4 {[%clk 0:01:02.6]} 53. Bf6 {[%clk 0:00:17.2]} 53... Rc4
{[%clk 0:01:03.3]} 54. Bd4 {[%clk 0:00:17.7]} 54... Rc6 {[%clk 0:00:59.1]} 55.
Bf6 {[%clk 0:00:18.2]} 55... Rc4 {[%clk 0:00:54.5]} 56. Bd4 {[%clk 0:00:19]}
56... Rc6 {[%clk 0:00:55]} 57. Bf6 {[%clk 0:00:19.8]} 57... Rc7 {[%clk
0:00:56.4]} 58. Kh6 {[%clk 0:00:19.6]} 58... Kg4 {[%clk 0:00:57.5]} 59. Bg7
{[%clk 0:00:19.4]} 59... Kxh4 {[%clk 0:00:57.3]} 60. Bf6 {[%clk 0:00:18.4]}
60... Kg4 {[%clk 0:00:55.2]} 61. Bd4 {[%clk 0:00:15.8]} 61... Kf5 {[%clk
0:00:55.3]} 62. Bf6 {[%clk 0:00:16.7]} 62... Rf7 {[%clk 0:00:52.9]} 63. Bd4
{[%clk 0:00:17]} 63... Re7 {[%clk 0:00:36.4]} 64. Bf6 {[%clk 0:00:17.6]} 64...
Rc7 {[%clk 0:00:36.4]} 65. Bd4 {[%clk 0:00:18.3]} 65... Rc6+ {[%clk 0:00:25.6]}
66. Bf6 {[%clk 0:00:19.5]} 66... Rc7 {[%clk 0:00:25.6]} 67. Bd4 {[%clk
0:00:20.3]} 67... Rf7 {[%clk 0:00:26]} 68. Bf6 {[%clk 0:00:21.3]} 68... Ke6
{[%clk 0:00:26.7]} 69. Bd4 {[%clk 0:00:21.4]} 69... Ke7 {[%clk 0:00:25.6]} 70.
Bf6+ {[%clk 0:00:22]} 70... Kf8 {[%clk 0:00:26.1]} 71. Bd4 {[%clk 0:00:20.8]}
71... Kg8 {[%clk 0:00:25]} 72. g6 {[%clk 0:00:21.5]} 72... hxg6 {[%clk 0:00:24]}
73. Kxg6 {[%clk 0:00:23.4]} 73... Rc7 {[%clk 0:00:25.2]} 74. Kf5 {[%clk
0:00:24.4]} 74... Rxc3 {[%clk 0:00:26.6]} 75. Bxc3 {[%clk 0:00:25.2]} 1/2-1/2

[Event "*** Titled Tuesday Blitz"]
[Site "Chess.com"]
[Date "2018.09.04"]
[Round "4"]
[White "GhostOfGreenval"]
[Black "Godzillator"]
[Result "1-0"]
[WhiteElo "2463"]
[BlackElo "2306"]
[TimeControl "180+2"]
[EndTime "14:29:16 PDT"]
[Termination "GhostOfGreenval won by resignation"]

1. d4 {[%clk 0:03:01.9]} 1... d5 {[%clk 0:03:00.6]} 2. c4 {[%clk 0:03:02.8]}
2... c6 {[%clk 0:03:01.7]} 3. e3 {[%clk 0:03:01.7]} 3... Nf6 {[%clk 0:03:02.3]}
4. Nf3 {[%clk 0:03:02.2]} 4... Bf5 {[%clk 0:03:02.9]} 5. Nc3 {[%clk 0:03:01.9]}
5... a6 {[%clk 0:03:04.1]} 6. Qb3 {[%clk 0:02:56.5]} 6... b5 {[%clk 0:03:04.5]}
7. cxd5 {[%clk 0:02:51.8]} 7... cxd5 {[%clk 0:03:05.9]} 8. a4 {[%clk 0:02:50.9]}
8... b4 {[%clk 0:03:07.1]} 9. Na2 {[%clk 0:02:35.9]} 9... a5 {[%clk 0:03:06.5]}
10. Bb5+ {[%clk 0:02:33.7]} 10... Bd7 {[%clk 0:03:06.2]} 11. O-O {[%clk
0:02:31.1]} 11... e6 {[%clk 0:03:06.6]} 12. Bd2 {[%clk 0:02:30.5]} 12... Bd6
{[%clk 0:03:07.2]} 13. Nc1 {[%clk 0:02:26.5]} 13... O-O {[%clk 0:03:03]} 14.
Bxd7 {[%clk 0:02:27.5]} 14... Nbxd7 {[%clk 0:03:03.2]} 15. Nd3 {[%clk
0:02:29.4]} 15... Rc8 {[%clk 0:03:01.6]} 16. Rfc1 {[%clk 0:02:29.4]} 16... Qb6
{[%clk 0:03:02.4]} 17. Nfe5 {[%clk 0:02:27.6]} 17... Bxe5 {[%clk 0:03:00.2]} 18.
Nxe5 {[%clk 0:02:25.9]} 18... Nxe5 {[%clk 0:03:00.6]} 19. dxe5 {[%clk
0:02:27.8]} 19... Ne4 {[%clk 0:03:01.1]} 20. Be1 {[%clk 0:02:29.1]} 20... Rc6
{[%clk 0:02:44.4]} 21. f3 {[%clk 0:02:13.5]} 21... Nc5 {[%clk 0:02:43.8]} 22.
Qd1 {[%clk 0:02:11]} 22... Rfc8 {[%clk 0:02:43.2]} 23. Bf2 {[%clk 0:02:11.7]}
23... Qa6 {[%clk 0:02:36.3]} 24. h4 {[%clk 0:01:56.6]} 24... Nd3 {[%clk
0:02:34.3]} 25. Rxc6 {[%clk 0:01:58.5]} 25... Rxc6 {[%clk 0:02:34.7]} 26. Qe2
{[%clk 0:01:59.4]} 26... Nc5 {[%clk 0:02:27.5]} 27. Qb5 {[%clk 0:01:55.8]} 27...
Nd3 {[%clk 0:01:50.1]} 28. b3 {[%clk 0:01:36.5]} 28... h5 {[%clk 0:01:37.7]} 29.
Bg3 {[%clk 0:01:17.4]} 29... Qxb5 {[%clk 0:01:31.7]} 30. axb5 {[%clk 0:01:18.6]}
30... Rb6 {[%clk 0:01:32.8]} 31. Rxa5 {[%clk 0:01:19.3]} 31... Nc5 {[%clk
0:01:32.6]} 32. e4 {[%clk 0:01:08.9]} 32... d4 {[%clk 0:01:25.8]} 33. Be1 {[%clk
0:00:21.7]} 33... Nxb3 {[%clk 0:01:24.5]} 34. Ra8+ {[%clk 0:00:22.8]} 34... Kh7
{[%clk 0:01:23.7]} 35. Bxb4 {[%clk 0:00:24.7]} 35... Rxb5 {[%clk 0:01:23.9]} 36.
Bd6 {[%clk 0:00:23.6]} 36... d3 {[%clk 0:01:23.8]} 37. Kf2 {[%clk 0:00:25.1]}
37... d2 {[%clk 0:01:16.8]} 38. Ke2 {[%clk 0:00:25.1]} 38... Rb6 {[%clk
0:01:09]} 39. Rb8 {[%clk 0:00:24.9]} 39... Rxb8 {[%clk 0:00:56.1]} 40. Bxb8
{[%clk 0:00:26.8]} 40... Kg8 {[%clk 0:00:38.4]} 41. Bd6 {[%clk 0:00:27.3]} 41...
g6 {[%clk 0:00:39.2]} 42. Bb4 {[%clk 0:00:28]} 42... Kg7 {[%clk 0:00:33.8]} 43.
Bxd2 {[%clk 0:00:28.9]} 43... Nc5 {[%clk 0:00:33.4]} 44. Bg5 {[%clk 0:00:27.1]}
44... Nd7 {[%clk 0:00:33.2]} 45. f4 {[%clk 0:00:24.4]} 45... Kf8 {[%clk
0:00:32.9]} 46. Kf3 {[%clk 0:00:24.5]} 46... Ke8 {[%clk 0:00:33.7]} 47. g4
{[%clk 0:00:24.2]} 47... hxg4+ {[%clk 0:00:32.8]} 48. Kxg4 {[%clk 0:00:26.1]}
48... Nc5 {[%clk 0:00:33.1]} 49. Kf3 {[%clk 0:00:25.5]} 49... Kd7 {[%clk
0:00:33.6]} 50. Ke3 {[%clk 0:00:26.2]} 50... Kc6 {[%clk 0:00:34.5]} 51. Kd4
{[%clk 0:00:18]} 51... Kb5 {[%clk 0:00:34.9]} 52. Be7 {[%clk 0:00:12.9]} 52...
Nd7 {[%clk 0:00:32.2]} 53. Bd6 {[%clk 0:00:13.8]} 53... Kc6 {[%clk 0:00:32.2]}
54. f5 {[%clk 0:00:14.3]} 54... Nb6 {[%clk 0:00:28.1]} 55. fxg6 {[%clk
0:00:09.5]} 55... fxg6 {[%clk 0:00:28.3]} 56. Ke3 {[%clk 0:00:11.4]} 56... Nc4+
{[%clk 0:00:29.1]} 57. Kf4 {[%clk 0:00:12.3]} 57... Nd2 {[%clk 0:00:22.7]} 58.
Kg5 {[%clk 0:00:12.3]} 58... Nxe4+ {[%clk 0:00:23.3]} 59. Kxg6 {[%clk
0:00:13.3]} 59... Kd5 {[%clk 0:00:20.8]} 60. h5 {[%clk 0:00:14.2]} 60... Nf2
{[%clk 0:00:06.2]} 61. h6 {[%clk 0:00:13.7]} 61... Nd3 {[%clk 0:00:07.3]} 62. h7
{[%clk 0:00:13.4]} 62... Nf4+ {[%clk 0:00:08.8]} 63. Kg7 {[%clk 0:00:10.9]}
63... Nh5+ {[%clk 0:00:06.3]} 64. Kg6 {[%clk 0:00:10.4]} 64... Nf4+ {[%clk
0:00:07.2]} 65. Kh6 {[%clk 0:00:11.5]} 65... Nd3 {[%clk 0:00:07.3]} 66. h8=Q
{[%clk 0:00:12.6]} 66... Nf2 {[%clk 0:00:08.3]} 67. Qa8+ {[%clk 0:00:13.5]}
67... Kd4 {[%clk 0:00:08.6]} 68. Qa7+ {[%clk 0:00:14.6]} 68... Ke4 {[%clk
0:00:10.2]} 69. Qxf2 {[%clk 0:00:16.5]} 69... Kd5 {[%clk 0:00:09.9]} 70. Qf6
{[%clk 0:00:17.5]} 1-0

[Event "*** Titled Tuesday Blitz"]
[Site "Chess.com"]
[Date "2018.09.04"]
[Round "4"]
[White "Xeniya2005"]
[Black "BigAl"]
[Result "1/2-1/2"]
[WhiteElo "1997"]
[BlackElo "2070"]
[TimeControl "180+2"]
[EndTime "14:29:22 PDT"]
[Termination "Game drawn - insufficient material"]

1. e4 {[%clk 0:03:01.9]} 1... c5 {[%clk 0:03:00.8]} 2. Nf3 {[%clk 0:03:02.4]}
2... e6 {[%clk 0:03:01.9]} 3. d4 {[%clk 0:03:02.8]} 3... cxd4 {[%clk 0:03:03.2]}
4. Nxd4 {[%clk 0:03:04.2]} 4... a6 {[%clk 0:03:05.1]} 5. Nc3 {[%clk 0:03:04.3]}
5... Qc7 {[%clk 0:03:07]} 6. Be3 {[%clk 0:03:03.9]} 6... Nf6 {[%clk 0:03:08]} 7.
Bd3 {[%clk 0:03:04.1]} 7... Bc5 {[%clk 0:03:07.1]} 8. O-O {[%clk 0:03:03.5]}
8... h5 {[%clk 0:03:08.2]} 9. h3 {[%clk 0:02:59.6]} 9... b5 {[%clk 0:03:09]} 10.
a3 {[%clk 0:02:55.2]} 10... Bb7 {[%clk 0:03:09.9]} 11. Qd2 {[%clk 0:02:47.8]}
11... g5 {[%clk 0:03:03.9]} 12. Nb3 {[%clk 0:02:31.1]} 12... Bxe3 {[%clk
0:03:01.1]} 13. Qxe3 {[%clk 0:02:31.3]} 13... Qe5 {[%clk 0:02:42.3]} 14. f4
{[%clk 0:02:00.4]} 14... gxf4 {[%clk 0:02:43.4]} 15. Qxf4 {[%clk 0:02:00]} 15...
Qxf4 {[%clk 0:02:38.3]} 16. Rxf4 {[%clk 0:02:01.1]} 16... Ng8 {[%clk 0:02:24]}
17. e5 {[%clk 0:01:58.1]} 17... Nc6 {[%clk 0:02:21.7]} 18. Nc5 {[%clk
0:01:56.2]} 18... O-O-O {[%clk 0:02:17.1]} 19. Re1 {[%clk 0:01:52]} 19... Nh6
{[%clk 0:02:04.9]} 20. Rf6 {[%clk 0:01:31.9]} 20... Ne7 {[%clk 0:01:50.7]} 21.
Nxb7 {[%clk 0:01:21.5]} 21... Kxb7 {[%clk 0:01:51.9]} 22. Ne4 {[%clk 0:01:21.5]}
22... Nc8 {[%clk 0:01:44.5]} 23. Ng5 {[%clk 0:01:17]} 23... Rdf8 {[%clk
0:01:19]} 24. Ref1 {[%clk 0:01:16.1]} 24... d6 {[%clk 0:01:15.1]} 25. exd6
{[%clk 0:01:10.3]} 25... Nxd6 {[%clk 0:01:16.2]} 26. Nxe6 {[%clk 0:01:10.1]}
26... Rc8 {[%clk 0:01:10]} 27. Ng5 {[%clk 0:01:09]} 27... Kc7 {[%clk 0:00:59.1]}
28. Re1 {[%clk 0:01:04.3]} 28... Kd7 {[%clk 0:00:59.1]} 29. g3 {[%clk 0:00:46]}
29... Rc5 {[%clk 0:01:00.1]} 30. h4 {[%clk 0:00:40.4]} 30... Ng8 {[%clk
0:01:01.2]} 31. Rf4 {[%clk 0:00:38.1]} 31... f6 {[%clk 0:00:58.4]} 32. Ne6
{[%clk 0:00:37.6]} 32... Re5 {[%clk 0:00:58.9]} 33. Nf8+ {[%clk 0:00:34.8]}
33... Kc6 {[%clk 0:00:55.2]} 34. Rxe5 {[%clk 0:00:30.7]} 34... fxe5 {[%clk
0:00:56.5]} 35. Rf1 {[%clk 0:00:29.4]} 35... Ne7 {[%clk 0:00:55.7]} 36. Ng6
{[%clk 0:00:23.8]} 36... Nxg6 {[%clk 0:00:55.7]} 37. Bxg6 {[%clk 0:00:23.8]}
37... Kd5 {[%clk 0:00:56.1]} 38. Kh2 {[%clk 0:00:23.6]} 38... e4 {[%clk
0:00:55.7]} 39. Rd1+ {[%clk 0:00:23.2]} 39... Ke5 {[%clk 0:00:56.9]} 40. Re1
{[%clk 0:00:21.1]} 40... Rf8 {[%clk 0:00:57.2]} 41. Kg2 {[%clk 0:00:21.4]} 41...
Rh8 {[%clk 0:00:54.7]} 42. Rf1 {[%clk 0:00:22]} 42... a5 {[%clk 0:00:55.2]} 43.
Re1 {[%clk 0:00:21.9]} 43... b4 {[%clk 0:00:56.1]} 44. axb4 {[%clk 0:00:22.3]}
44... axb4 {[%clk 0:00:57.5]} 45. Ra1 {[%clk 0:00:23.4]} 45... Rc8 {[%clk
0:00:55.5]} 46. Ra5+ {[%clk 0:00:23.1]} 46... Kd4 {[%clk 0:00:56.7]} 47. Bxh5
{[%clk 0:00:21.6]} 47... Rxc2+ {[%clk 0:00:56.8]} 48. Kh3 {[%clk 0:00:22.5]}
48... e3 {[%clk 0:00:56.6]} 49. Ra6 {[%clk 0:00:22.6]} 49... Ne4 {[%clk
0:00:57.7]} 50. Bf3 {[%clk 0:00:22]} 50... Nf2+ {[%clk 0:00:56.1]} 51. Kg2
{[%clk 0:00:21.6]} 51... Nd3+ {[%clk 0:00:57.5]} 52. Kg1 {[%clk 0:00:22.1]}
52... Ne5 {[%clk 0:00:58]} 53. Bh5 {[%clk 0:00:21.5]} 53... Rxb2 {[%clk
0:00:58.1]} 54. Rd6+ {[%clk 0:00:22.3]} 54... Ke4 {[%clk 0:00:58.2]} 55. Bd1
{[%clk 0:00:20.1]} 55... Rb1 {[%clk 0:00:57.7]} 56. Kg2 {[%clk 0:00:20.3]} 56...
b3 {[%clk 0:00:56.4]} 57. h5 {[%clk 0:00:20.8]} 57... Rb2+ {[%clk 0:00:54.6]}
58. Kg1 {[%clk 0:00:21.3]} 58... Rb1 {[%clk 0:00:55.9]} 59. Kg2 {[%clk 0:00:22]}
59... Rxd1 {[%clk 0:00:54.7]} 60. Rxd1 {[%clk 0:00:21.6]} 60... e2 {[%clk
0:00:56.3]} 61. Rb1 {[%clk 0:00:22]} 61... Ng4 {[%clk 0:00:56.2]} 62. Kh3 {[%clk
0:00:21.9]} 62... Nf6 {[%clk 0:00:53.5]} 63. h6 {[%clk 0:00:22.1]} 63... Kd4
{[%clk 0:00:50.2]} 64. Kh4 {[%clk 0:00:20.9]} 64... Kc3 {[%clk 0:00:51.6]} 65.
Kg5 {[%clk 0:00:21]} 65... Nh7+ {[%clk 0:00:52.8]} 66. Kg6 {[%clk 0:00:21.8]}
66... Nf8+ {[%clk 0:00:53.6]} 67. Kg7 {[%clk 0:00:22.8]} 67... Kc2 {[%clk
0:00:55.1]} 68. Rh1 {[%clk 0:00:21.8]} 68... b2 {[%clk 0:00:55.8]} 69. Kxf8
{[%clk 0:00:22.3]} 69... b1=Q {[%clk 0:00:57]} 70. Rxb1 {[%clk 0:00:23.1]} 70...
Kxb1 {[%clk 0:00:58.4]} 71. h7 {[%clk 0:00:24.3]} 71... e1=Q {[%clk 0:01:00]}
72. h8=Q {[%clk 0:00:25.2]} 72... Qxg3 {[%clk 0:01:01.2]} 73. Qf6 {[%clk
0:00:24.8]} 73... Kc2 {[%clk 0:01:01.8]} 74. Qc6+ {[%clk 0:00:25.1]} 74... Kd3
{[%clk 0:01:01.6]} 75. Qd7+ {[%clk 0:00:25.9]} 75... Ke4 {[%clk 0:01:02.8]} 76.
Qc6+ {[%clk 0:00:26.5]} 76... Kf5 {[%clk 0:01:03.9]} 77. Qd5+ {[%clk 0:00:26.8]}
77... Kf6 {[%clk 0:01:05.3]} 78. Qc6+ {[%clk 0:00:27.2]} 78... Kf5 {[%clk
0:01:06.5]} 79. Qc5+ {[%clk 0:00:27.8]} 79... Kf4 {[%clk 0:01:07.8]} 80. Qc4+
{[%clk 0:00:28.6]} 80... Kf3 {[%clk 0:01:08.9]} 81. Qd3+ {[%clk 0:00:29.5]}
81... Kf4 {[%clk 0:01:10.2]} 82. Qxg3+ {[%clk 0:00:30.9]} 82... Kxg3 {[%clk
0:01:11.8]} 1/2-1/2